bitfinex-derivatives/quotes_SOLF0:USTF0_20251117
["timestamp","ask_amount","ask_price","bid_price","bid_amount"]
[1763373600435,73.54,142.05,142.04,3.18455145]
[1763373600830,75.22,142.05,142.04,0.04455145]
[1763373601033,1.68,142.05,142.04,0.04455145]
[1763373601333,3.63607769,142.05,142.04,0.04455145]
[1763373601533,74.79607769,142.05,142.04,0.04455145]
[1763373602432,1.95607769,142.05,142.04,3.18455145]
[1763373602628,77.17607769,142.05,142.04,0.04455145]
[1763373604344,3.63607769,142.05,142.04,0.04455145]
[1763373604536,1.95607769,142.07,142.04,3.18455145]
[1763373605240,46.4665987,142.08,142.04,3.18455145]
[1763373605436,0.0465987,142.08,142.04,3.18455145]
[1763373606143,0.0465987,142.08,142.04,9.52595145]
[1763373606441,0.0465987,142.08,142.05,3.14]
[1763373606946,1.7265987,142.08,142.05,3.14]
[1763373608443,1.68,142.06,142.04,3.18455145]
[1763373608644,3.63607769,142.07,142.04,3.18455145]
[1763373610141,1.68,142.07,142.04,3.18455145]
[1763373610445,1.68,142.07,142.04,0.04455145]
[1763373610446,3.63607769,142.07,142.04,0.04455145]
[1763373610642,3.63607769,142.05,142.04,0.04455145]
[1763373612638,1.68,142.04,141.98,3.14]
[1763373612844,1.68,142.01,141.98,3.14]
[1763373613145,1.95607769,142.02,141.98,3.14]
[1763373613146,3.63607769,142.02,141.98,3.14]
[1763373613647,0.04445389,142.01,142.0,3.14]
[1763373618854,1.69,142.04,142.01,3.36]
[1763373619456,1.69,142.05,142.01,3.36]
[1763373619961,0.0470199,142.04,142.01,3.36]
[1763373620347,1.69,142.09,142.01,3.36]
[1763373620549,3.05822739,142.1,142.01,3.36]
[1763373620550,1.69,142.07,142.01,3.36]
[1763373620754,1.69,142.07,142.04,3.36]
[1763373621251,1.69,142.07,142.04,3.40902579]
[1763373621459,1.74004963,142.07,142.04,3.40902579]
[1763373623960,0.05004963,142.07,142.05,3.08]
[1763373633363,0.05004963,142.07,142.04,6.39042579]
[1763373633364,1.73004963,142.07,142.04,0.04902579]
[1763373634864,0.05004963,142.07,142.05,3.08]
[1763373638278,0.05004963,142.07,142.05,9.421]
[1763373638572,0.05004963,142.07,142.06,3.08]
[1763373639474,1.68,142.11,142.08,3.08]
[1763373640475,1.73111502,142.11,142.08,3.12977766]
[1763373640872,0.05111502,142.11,142.09,3.08]
[1763373645278,0.05111502,142.11,142.1,3.08]
[1763373646685,1.73111502,142.11,142.09,9.4192]
[1763373647082,0.05111502,142.11,142.1,3.08]
[1763373650785,0.05111502,142.11,142.1,9.4188]
[1763373654788,1.68,142.16,142.12,3.08]
[1763373655782,0.04514752,142.15,142.13,3.13246853]
[1763373656089,1.72514752,142.15,142.13,3.13246853]
[1763373658984,1.72514752,142.15,142.13,0.05246853]
[1763373659187,4.73822739,142.14,142.13,0.05246853]
[1763373671099,1.68,142.14,142.13,0.05246853]
[1763373674201,75.16,142.14,142.13,0.05246853]
[1763373674603,1.68,142.14,142.13,0.05246853]
[1763373674802,75.16,142.14,142.13,0.05246853]
[1763373675505,1.68,142.14,142.13,0.05246853]
[1763373675706,75.16,142.14,142.13,0.05246853]
[1763373676207,1.68,142.14,142.13,0.05246853]
[1763373676398,75.16,142.14,142.13,0.05246853]
[1763373676601,78.21822739,142.14,142.13,0.05246853]
[1763373676810,77.11479497,142.14,142.13,0.05246853]
[1763373678303,3.63479497,142.14,142.13,0.05246853]
[1763373678510,77.11479497,142.14,142.13,0.05246853]
[1763373679209,3.63479497,142.14,142.13,0.05246853]
[1763373679409,77.11479497,142.14,142.13,0.05246853]
[1763373680110,3.63479497,142.14,142.13,0.05246853]
[1763373680301,77.11479497,142.14,142.13,0.05246853]
[1763373688202,83.71585229,142.14,142.13,0.05246853]
[1763373689606,1.68,142.13,142.08,3.12]
[1763373689808,1.68,142.1,142.08,3.12]
[1763373690716,1.73182723,142.1,142.08,3.1644879]
[1763373691114,3.63479497,142.09,142.08,0.0444879]
[1763373702525,1.68,142.08,142.03,3.12]
[1763373702720,1.68,142.06,142.03,3.12]
[1763373703621,1.73333843,142.06,142.03,3.16855592]
[1763373704228,1.68,142.04,142.03,0.04855592]
[1763373704435,75.16,142.04,142.03,0.04855592]
[1763373704927,0.05333843,142.06,142.03,3.16855592]
[1763373705136,73.53333843,142.06,142.04,3.29]
[1763373705825,75.21333843,142.06,142.04,3.29]
[1763373707331,1.68,142.05,142.03,3.33855592]
[1763373708032,1.68,142.05,142.03,0.04855592]
[1763373708732,1.68,142.05,142.03,3.33855592]
[1763373709638,75.21333843,142.06,142.03,3.33855592]
[1763373709930,1.68,142.05,142.03,3.33855592]
[1763373713327,1.68,142.1,142.04,3.17]
[1763373714219,1.68,142.1,142.03,1.95479497]
[1763373714220,0.04558495,142.08,142.06,0.04561115]
[1763373714532,0.04558495,142.08,142.07,3.17]
[1763373719734,1.72558495,142.08,142.06,3.21561115]
[1763373720237,0.04558495,142.08,142.06,3.21561115]
[1763373720441,1.72558495,142.08,142.06,3.21561115]
[1763373720733,1.72558495,142.08,142.06,0.04561115]
[1763373720940,3.63479497,142.07,142.06,0.04561115]
[1763373721134,3.63479497,142.07,142.02,3.17]
[1763373721135,1.68,142.06,142.02,3.17]
[1763373721438,1.68,142.04,142.0,3.17]
[1763373721634,73.48,142.06,142.0,3.17]
[1763373721635,1.68,142.02,142.0,3.17]
[1763373722334,1.73182906,142.02,142.0,3.21937606]
[1763373722734,3.63479497,142.07,142.01,3.17]
[1763373723237,3.63479497,142.07,142.03,3.17]
[1763373723832,0.05378917,142.06,142.04,3.21880456]
[1763373724030,1.73378917,142.06,142.04,3.21880456]
[1763373727742,0.05378917,142.06,142.04,3.21880456]
[1763373729141,0.05378917,142.06,142.05,3.17]
[1763373730945,0.05378917,142.06,142.05,9.511]
[1763373732949,0.05378917,142.06,142.05,3.17]
[1763373736142,0.05378917,142.06,142.05,9.511]
[1763373738045,8.27089983,142.14,142.08,3.26]
[1763373738349,1.68,142.14,142.08,3.26]
[1763373739148,1.68,142.14,142.11,3.26]
[1763373739149,0.05035443,142.12,142.11,3.26]
[1763373751161,1.67,142.17,142.12,3.21]
[1763373752159,0.04715938,142.16,142.14,3.21]
[1763373763267,0.04715938,142.16,142.14,9.5468]
[1763373763574,1.67,142.22,142.15,3.21]
[1763373764384,1.22436055,142.23,142.14,3.05513436]
[1763373764385,1.77110211,142.2,142.18,3.21]
[1763373765272,0.05110211,142.2,142.18,3.21]
[1763373765479,1.72,142.25,142.18,3.21]
[1763373765672,1.72,142.25,142.19,3.21]
[1763373766177,2.94397299,142.27,142.2,3.21]
[1763373766378,2.94397299,142.27,142.23,3.21]
[1763373766379,0.05328594,142.25,142.23,3.21]
[1763373766682,1.77328594,142.25,142.23,3.21]
[1763373769078,0.05328594,142.25,142.23,3.21]
[1763373773279,0.05328594,142.25,142.23,9.5429]
[1763373773485,0.05328594,142.25,142.24,3.12]
[1763373775282,1.77328594,142.25,142.22,3.17267588]
[1763373775889,0.05328594,142.25,142.22,3.17267588]
[1763373787400,0.05328594,142.25,142.22,9.50607588]
[1763373787595,0.05328594,142.25,142.23,3.12]
[1763373795608,0.05328594,142.25,142.22,0.05267588]
[1763373795609,1.77328594,142.25,142.22,0.05267588]
[1763373795906,1.72,142.23,142.22,0.05267588]
[1763373796806,3.67196958,142.23,142.22,0.05267588]
[1763373801115,1.72,142.23,142.22,0.05267588]
[1763373801312,1.72,142.23,142.14,9.83088196]
[1763373801511,1.95196958,142.24,142.14,3.32]
[1763373801512,1.72,142.19,142.14,3.32]
[1763373801812,1.72,142.17,142.13,3.11]
[1763373802116,1.72,142.15,142.11,3.11]
[1763373802607,0.05065468,142.14,142.12,0.0493153]
[1763373802811,0.05065468,142.14,142.12,3.1593153]
[1763373806714,1.72,142.13,142.12,0.0493153]
[1763373807219,1.72,142.12,142.07,3.11]
[1763373807417,1.72,142.09,142.03,1.95196958]
[1763373807614,1.72,142.09,142.04,3.11]
[1763373808613,0.04576695,142.08,142.06,3.11]
[1763373810714,1.72,142.14,142.08,3.11]
[1763373810914,1.72,142.14,142.09,3.11]
[1763373811716,1.76930873,142.13,142.1,3.15802669]
[1763373811909,1.72,142.12,142.1,0.04802669]
[1763373812314,3.67196958,142.11,142.1,0.04802669]
[1763373813208,1.72,142.11,142.1,0.04802669]
[1763373813615,1.76930873,142.13,142.1,3.15802669]
[1763373813810,0.04930873,142.13,142.1,3.15802669]
[1763373814010,0.04930873,142.13,142.1,5.10999627]
[1763373814216,0.04930873,142.13,142.11,3.11]
[1763373815217,0.04930873,142.13,142.12,5.06196958]
[1763373821728,0.04930873,142.13,142.12,3.11]
[1763373825628,0.04930873,142.13,142.12,5.06196958]
[1763373827825,1.72,142.2,142.13,3.11]
[1763373828023,1.72,142.22,142.17,3.11]
[1763373828727,1.72,142.22,142.19,3.11]
[1763373828932,0.04743442,142.21,142.19,3.11]
[1763373831022,0.04743442,142.21,142.18,2.0058994]
[1763373831023,0.04743442,142.21,142.2,5.06196958]
[1763373832532,0.04743442,142.21,142.2,3.11]
[1763373833437,0.04743442,142.21,142.2,5.06196958]
[1763373840137,0.04743442,142.21,142.2,3.11]
[1763373840640,0.04743442,142.21,142.2,5.06196958]
[1763373842043,1.76743442,142.21,142.18,0.05392982]
[1763373842229,1.76743442,142.21,142.18,3.15392982]
[1763373842842,1.76743442,142.21,142.18,0.05392982]
[1763373846243,1.72,142.19,142.11,3.1]
[1763373846445,1.72,142.15,142.11,3.1]
[1763373847147,0.0510416,142.14,142.12,3.1491269]
[1763373860965,8.772,142.2,142.12,3.1491269]
[1763373861460,8.772,142.2,142.15,3.36]
[1763373862057,0.04754966,142.19,142.17,3.34]
[1763373874667,1.76754966,142.19,142.17,3.34]
[1763373874966,0.04754966,142.19,142.17,3.34]
[1763373877375,1.72,142.18,142.11,3.24]
[1763373878171,1.72,142.16,142.11,3.24]
[1763373878368,1.72,142.14,142.12,0.0489013]
[1763373890279,1.72,142.12,142.06,3.24]
[1763373891480,1.77186107,142.1,142.08,0.04478544]
[1763373895578,1.72,142.09,142.03,3.23]
[1763373896684,1.72,142.09,142.05,0.05232086]
[1763373898579,0.05186107,142.1,142.06,3.23]
[1763373899986,0.05186107,142.1,142.07,3.23]
[1763373901081,0.05186107,142.1,142.07,9.5701]
[1763373901281,0.05186107,142.1,142.08,3.23]
[1763373903288,1.77186107,142.1,142.08,3.23]
[1763373903489,0.05186107,142.1,142.08,3.23]
[1763373906193,9.60784145,142.16,142.1,3.05]
[1763373906194,7.051,142.16,142.1,3.05]
[1763373906487,1.77,142.18,142.12,3.05]
[1763373907085,0.05277465,142.16,142.15,3.05]
[1763373909395,49.58158874,242.65,142.15,3.05]
[1763373909396,4.8232369,142.24,142.16,3.05]
[1763373909596,54.25,142.24,142.16,3.05]
[1763373910294,54.25,142.24,142.19,0.0454347]
[1763373910498,0.04501488,142.21,142.19,3.0954347]
[1763373910998,1.81501488,142.21,142.19,0.0454347]
[1763373912195,1.81501488,142.21,142.19,3.0954347]
[1763373912499,0.04501488,142.21,142.19,3.0954347]
[1763373918805,0.04501488,142.21,142.19,5.0468238]
[1763373919207,0.04501488,142.21,142.2,3.32]
[1763373919415,1.9513891,142.27,142.21,3.32]
[1763373919798,1.9513891,142.27,142.22,3.32]
[1763373920508,0.05147947,142.26,142.24,3.32]
[1763373921806,1.77,142.24,142.18,3.31]
[1763373922006,1.9513891,142.23,142.18,3.31]
[1763373922703,0.04668144,142.22,142.2,3.31]
[1763373926009,1.9513891,142.21,142.2,3.31]
[1763373928906,3.7213891,142.21,142.19,3.35805918]
[1763373930312,1.9513891,142.21,142.19,3.35805918]
[1763373933409,1.77,142.2,142.19,0.04805918]
[1763373933600,1.77,142.2,142.12,3.07]
[1763373933806,1.9513891,142.16,142.12,3.07]
[1763373934500,0.04446689,142.15,142.13,0.04504298]
[1763373934713,0.04446689,142.15,142.14,3.07]
[1763373950113,1.81446689,142.15,142.1,3.07]
[1763373950318,1.9513891,142.12,142.1,3.07]
[1763373950520,3.7213891,142.12,142.1,3.07]
[1763373951224,3.7213891,142.12,142.1,3.12349676]
[1763373951825,1.9513891,142.12,142.1,3.12349676]
[1763373952623,3.7213891,142.12,142.1,3.12349676]
[1763373952818,3.7213891,142.12,142.1,0.05349676]
[1763373953019,3.7213891,142.12,142.1,3.13349676]
[1763373955726,1.81446689,142.15,142.1,3.13349676]
[1763373956028,3.7213891,142.14,142.1,3.13349676]
[1763373957627,1.77,142.1,142.06,3.08]
[1763373957831,1.9513891,142.08,142.06,3.08]
[1763373958630,2.00184437,142.08,142.06,3.13349549]
[1763373969854,3.77184437,142.08,142.06,3.13349549]
[1763373970349,1.77,142.07,142.06,0.05349549]
[1763373971148,1.77,142.07,142.02,3.18]
[1763373971347,1.77,142.04,142.02,3.18]
[1763373972150,1.81847972,142.04,142.02,3.18]
[1763373972348,1.81847972,142.04,142.02,3.23165115]
[1763373973749,3.7213891,142.03,142.02,0.05165115]
[1763373973955,1.77,142.02,141.99,3.18]
[1763373974958,1.77,142.02,141.99,3.22572364]
[1763373980663,1.77,142.02,141.99,0.04572364]
[1763373982552,1.77,142.02,141.95,3.1]
[1763373983761,1.78,141.99,141.97,0.04532895]
[1763373986762,0.05318531,142.0,141.97,3.14532895]
[1763373986955,1.83318531,142.0,141.97,3.14532895]
[1763373989359,0.05318531,142.0,141.97,3.14532895]
[1763373992864,3.06565421,142.07,141.99,3.1]
[1763373993454,1.84,142.06,141.99,3.1]
[1763373993768,1.84,142.03,142.01,0.05072121]
[1763373995165,0.04446919,142.04,142.01,3.25072121]
[1763373996160,1.87446919,142.04,142.01,3.25072121]
[1763373996867,1.87446919,142.04,142.01,0.05072121]
[1763374010274,1.83,142.02,142.01,0.05072121]
[1763374010479,75.53,142.02,142.01,0.05072121]
[1763374015682,82.06538819,142.02,142.01,0.05072121]
[1763374019879,1.81,142.01,141.95,3.21]
[1763374020183,4.86928745,141.99,141.95,3.21]
[1763374020382,73.68,141.98,141.95,3.21]
[1763374020584,9.64959604,142.01,141.95,3.21]
[1763374020790,73.68,142.0,141.95,3.21]
[1763374020970,0.04935379,141.99,141.98,3.21]
[1763374025883,1.85935379,141.99,141.97,0.04661714]
[1763374026084,1.81,141.98,141.97,0.04661714]
[1763374026484,4.91864124,141.99,141.97,3.25661714]
[1763374026686,1.81,141.98,141.97,0.04661714]
[1763374029090,4.91864124,141.99,141.97,3.25661714]
[1763374030108,78.59864124,141.99,141.97,3.25661714]
[1763374037106,3.10864124,141.99,141.97,3.25661714]
[1763374037306,73.70935379,141.99,141.97,3.25661714]
[1763374037606,1.81,141.98,141.97,0.04661714]
[1763374038410,73.70935379,141.99,141.97,3.39661714]
[1763374039513,75.51935379,141.99,141.97,3.39661714]
[1763374040815,1.95892641,141.98,141.97,3.39661714]
[1763374044813,3.76892641,141.98,141.97,0.04661714]
[1763374045209,77.44892641,141.98,141.97,0.04661714]
[1763374050125,73.68,141.98,141.97,3.23661714]
[1763374050622,75.49,141.98,141.97,3.23661714]
[1763374052020,75.49,141.98,141.97,0.04661714]
[1763374052220,75.49,141.98,141.91,6.52902765]
[1763374052426,1.81,141.94,141.92,3.19]
[1763374052921,75.49,141.94,141.92,3.19]
[1763374053313,75.54326591,141.94,141.92,3.24348834]
[1763374053821,73.73326591,141.94,141.92,3.24348834]
[1763374055318,75.54326591,141.94,141.92,3.24348834]
[1763374055821,73.68,141.93,141.92,3.24348834]
[1763374057622,0.05326591,141.94,141.92,3.24348834]
[1763374057821,73.73326591,141.94,141.92,3.24348834]
[1763374058023,0.05326591,141.94,141.92,3.24348834]
[1763374060524,1.86326591,141.94,141.92,0.05348834]
[1763374060828,3.82219232,141.94,141.92,0.05348834]
[1763374061028,1.81,141.93,141.92,0.05348834]
[1763374061319,2.01219232,141.94,141.92,3.24348834]
[1763374061320,0.05326591,141.94,141.92,3.24348834]
[1763374061525,0.05326591,141.94,141.92,4.64348834]
[1763374061728,0.05326591,141.94,141.93,3.19]
[1763374061917,68.72,141.98,141.93,3.19]
[1763374062118,70.53,141.98,141.93,3.19]
[1763374062320,1.81,141.98,141.93,3.19]
[1763374062827,0.04995493,141.97,141.93,3.19]
[1763374065621,1.85995493,141.97,141.93,3.19]
[1763374067329,0.04995493,141.97,141.93,3.19]
[1763374069326,2.00888134,141.97,141.93,3.19]
[1763374071028,3.76892641,141.95,141.92,3.24348834]
[1763374071225,1.95892641,141.93,141.92,3.24348834]
[1763374080442,0.04649736,141.94,141.92,3.24348834]
[1763374087742,6.59030859,142.0,141.96,3.13]
[1763374088048,1.88,142.03,141.97,3.13]
[1763374088639,1.88,142.0,141.97,3.13]
[1763374088845,1.93290952,142.0,141.97,3.18398291]
[1763374090048,0.05290952,142.0,141.97,3.18398291]
[1763374090446,1.93290952,142.0,141.97,3.18398291]
[1763374090650,0.05290952,142.0,141.97,3.18398291]
[1763374101153,1.95892641,142.05,141.97,3.18398291]
[1763374101359,1.95892641,142.05,141.99,3.06]
[1763374102245,1.95892641,142.05,141.98,8.30302641]
[1763374102246,0.04533338,142.03,142.02,3.23]
[1763374103153,4.93730967,142.09,142.02,3.23]
[1763374103450,1.88,142.09,142.02,3.23]
[1763374104260,0.04930082,142.07,142.05,3.23]
[1763374107257,1.92930082,142.07,142.05,3.23]
[1763374107661,0.04930082,142.07,142.05,3.23]
[1763374118269,1.92930082,142.07,142.04,0.0463957]
[1763374118465,0.04930082,142.07,142.04,3.2763957]
[1763374122667,8.44869738,142.16,142.07,3.23]
[1763374122965,4.93730967,142.16,142.07,3.23]
[1763374123667,0.04552857,142.13,142.11,3.23]
[1763374133677,1.92552857,142.13,142.11,3.23]
[1763374133980,0.04552857,142.13,142.11,6.24730967]
[1763374134178,0.04552857,142.13,142.12,3.19]
[1763374135781,0.04552857,142.13,142.1,0.04776179]
[1763374135782,0.04552857,142.13,142.1,3.23776179]
[1763374141387,0.04552857,142.13,142.1,0.04776179]
[1763374141388,1.92552857,142.13,142.1,0.04776179]
[1763374142887,0.04552857,142.13,142.1,3.23776179]
[1763374149091,0.04552857,142.13,142.1,6.29507146]
[1763374149290,0.04552857,142.13,142.11,3.19]
[1763374149992,1.92552857,142.13,142.11,3.19]
[1763374151088,0.04552857,142.13,142.11,3.19]
[1763374164203,6.56869738,142.19,142.11,3.19]
[1763374164504,1.9,142.22,142.15,3.11]
[1763374164803,3.85239255,142.22,142.16,3.11]
[1763374165101,1.9,142.19,142.16,3.11]
[1763374165298,1.95330337,142.19,142.16,3.1547811]
[1763374166214,3.85239255,142.17,142.16,0.0447811]
[1763374166503,1.9,142.16,142.09,3.11]
[1763374166698,1.9,142.14,142.09,3.11]
[1763374167397,1.9,142.12,142.1,0.05026718]
[1763374167704,3.85239255,142.11,142.1,0.04697955]
[1763374168704,1.9,142.1,142.04,9.66240491]
[1763374168897,1.9,142.08,142.04,3.11]
[1763374169403,3.85239255,142.09,142.04,3.11]
[1763374169602,0.05021677,142.08,142.06,3.11]
[1763374169904,1.95021677,142.08,142.06,3.11]
[1763374170207,1.9,142.07,142.01,6.55240491]
[1763374170397,2.00260932,142.08,142.0,8.67926949]
[1763374170398,1.9,142.04,142.0,3.11]
[1763374170906,13.05622042,142.13,141.98,1.95239255]
[1763374170907,1.9,142.07,142.02,1.95239255]
[1763374171207,1.9,142.09,142.05,3.11]
[1763374171506,0.05108574,142.06,142.05,3.11]
[1763374171808,0.04597843,142.07,142.05,3.11]
[1763374172010,0.04862431,142.07,142.05,3.15592901]
[1763374174004,0.04862431,142.07,142.06,5.06239255]
[1763374174303,1.9,142.14,142.07,3.11]
[1763374174604,3.85239255,142.13,142.07,3.11]
[1763374175311,0.05043438,142.11,142.09,3.16337421]
[1763374175820,0.05043438,142.11,142.03,6.55240491]
[1763374175821,1.9,142.09,142.03,6.55240491]
[1763374176003,3.85239255,142.06,142.0,3.11]
[1763374176202,1.9,142.05,142.0,3.11]
[1763374177210,1.95296201,142.04,142.01,0.04599478]
[1763374177505,1.9,142.03,142.01,0.04599478]
[1763374177704,2.00535456,142.04,142.01,0.04599478]
[1763374177900,2.00535456,142.04,142.01,3.15599478]
[1763374177901,0.05296201,142.04,142.01,3.15599478]
[1763374178609,1.95296201,142.04,142.01,3.15599478]
[1763374178801,1.95296201,142.04,142.01,0.04599478]
[1763374180405,0.05296201,142.04,142.01,3.15599478]
[1763374181407,1.95296201,142.04,142.01,3.15599478]
[1763374181711,1.9,142.02,142.01,0.04599478]
[1763374185415,3.85239255,142.03,142.01,0.04599478]
[1763374187014,1.95296201,142.04,142.01,3.15599478]
[1763374188216,0.05296201,142.04,142.01,3.15599478]
[1763374188713,1.95296201,142.04,142.01,3.15599478]
[1763374191715,0.05296201,142.04,142.01,3.15599478]
[1763374196328,0.05296201,142.04,142.01,9.49869478]
[1763374196528,0.05296201,142.04,142.02,3.26]
[1763374201334,0.05296201,142.04,142.03,3.26]
[1763374206531,8.971,142.11,142.04,3.26]
[1763374206726,1.92,142.11,142.06,1.9549866]
[1763374206930,1.92,142.11,142.07,3.26]
[1763374207431,0.04470637,142.1,142.08,3.30697126]
[1763374207736,0.04470637,142.1,142.08,0.04697126]
[1763374207737,1.96470637,142.1,142.08,0.04697126]
[1763374208034,3.8749866,142.09,142.08,0.04697126]
[1763374208337,5.2749866,142.09,142.08,0.04697126]
[1763374209236,3.8749866,142.09,142.08,0.04697126]
[1763374209438,1.92,142.09,142.08,0.04697126]
[1763374210438,3.8749866,142.09,142.08,0.04697126]
[1763374212541,1.96470637,142.1,142.08,0.04697126]
[1763374214042,0.04470637,142.1,142.08,3.30697126]
[1763374217146,8.46549079,142.15,142.08,3.30697126]
[1763374217439,1.92,142.15,142.09,5.2149866]
[1763374218234,0.04783029,142.13,142.1,3.3]
[1763374218434,1.97783029,142.13,142.1,3.34995845]
[1763374227245,1.97783029,142.13,142.1,0.04995845]
[1763374230547,0.04783029,142.13,142.1,3.41995845]
[1763374233056,1.97783029,142.13,142.1,3.41995845]
[1763374233258,1.97783029,142.13,142.1,0.04995845]
[1763374233950,1.97783029,142.13,142.1,3.41995845]
[1763374234351,1.97783029,142.13,142.1,0.04995845]
[1763374234754,5.0317188,142.13,142.1,0.04995845]
[1763374234952,1.93,142.12,142.1,0.04995845]
[1763374235152,0.04783029,142.13,142.1,3.41995845]
[1763374235860,0.04783029,142.13,142.1,9.75865845]
[1763374236257,0.04783029,142.13,142.11,3.37]
[1763374237155,1.93,142.18,142.11,3.37]
[1763374238353,1.93,142.18,142.14,3.37]
[1763374238354,0.05371805,142.16,142.14,3.37]
[1763374239152,1.98371805,142.16,142.13,0.04536616]
[1763374239553,1.98371805,142.16,142.13,3.41536616]
[1763374242661,1.98371805,142.16,142.13,0.04536616]
[1763374247567,1.98371805,142.16,142.13,3.41536616]
[1763374250556,0.05371805,142.16,142.13,3.41536616]
[1763374251066,1.98371805,142.16,142.13,3.41536616]
[1763374251761,1.98371805,142.16,142.13,3.14536616]
[1763374257972,0.05371805,142.16,142.13,3.14536616]
[1763374258976,0.05371805,142.16,142.13,9.48266616]
[1763374259375,0.05371805,142.16,142.14,3.1]
[1763374261077,1.97371805,142.16,142.13,0.04536616]
[1763374261673,1.97371805,142.16,142.13,3.14536616]
[1763374263577,0.05371805,142.16,142.13,3.14536616]
[1763374268078,0.05371805,142.16,142.14,3.1]
[1763374271886,0.05371805,142.16,142.14,9.4368]
[1763374272184,0.05371805,142.16,142.15,3.1]
[1763374275389,6.54549079,142.2,142.15,3.1]
[1763374275983,6.54549079,142.21,142.15,3.1]
[1763374276388,0.04697986,142.19,142.17,3.15187536]
[1763374281294,0.04697986,142.19,142.18,3.16]
[1763374281791,1.92,142.24,142.19,3.23]
[1763374281989,6.54549079,142.26,142.19,3.23]
[1763374282187,1.92,142.27,142.2,3.23]
[1763374282386,1.92,142.27,142.22,3.23]
[1763374282891,0.0512926,142.26,142.24,3.23]
[1763374283681,1.9712926,142.26,142.24,3.23]
[1763374284296,1.9712926,142.26,142.23,3.27742054]
[1763374284695,1.9712926,142.26,142.23,0.04742054]
[1763374286393,1.9712926,142.26,142.23,3.27742054]
[1763374286887,3.87168884,142.24,142.23,0.04742054]
[1763374289096,1.92,142.24,142.23,0.04742054]
[1763374289392,3.87168884,142.24,142.23,0.04742054]
[1763374289994,1.92,142.24,142.23,0.04742054]
[1763374290192,3.87168884,142.24,142.23,0.04742054]
[1763374290789,1.95168884,142.24,142.23,0.04742054]
[1763374290995,1.95168884,142.24,142.23,3.27742054]
[1763374291891,3.92298144,142.26,142.23,3.27742054]
[1763374295404,0.0512926,142.26,142.23,3.27742054]
[1763374296220,0.0512926,142.26,142.25,3.23]
[1763374296407,3.87168884,142.31,142.25,3.23]
[1763374297111,3.87168884,142.31,142.27,3.23]
[1763374297513,0.048573,142.3,142.29,3.23]
[1763374299717,1.968573,142.3,142.28,0.05314895]
[1763374299912,3.92026184,142.3,142.28,0.05314895]
[1763374300713,1.92,142.29,142.28,0.05314895]
[1763374301617,1.92,142.29,142.23,3.23]
[1763374301918,1.92,142.29,142.18,1.95168884]
[1763374301919,3.87168884,142.25,142.21,3.23]
[1763374302325,1.92,142.24,142.21,3.23]
[1763374302514,1.95168884,142.25,142.21,3.23]
[1763374302822,0.05013871,142.24,142.22,3.2759421]
[1763374303010,0.05013871,142.24,142.22,3.27775864]
[1763374317541,0.05013871,142.24,142.23,3.24]
[1763374319539,1.95168884,142.28,142.23,3.24]
[1763374320133,1.95168884,142.28,142.24,3.24]
[1763374320340,0.05344744,142.27,142.24,3.24]
[1763374320531,0.05344744,142.27,142.24,3.29175908]
[1763374320736,1.22343511,142.34,142.29,3.24]
[1763374321042,1.97,142.33,142.29,3.24]
[1763374321239,3.92168884,142.33,142.29,3.24]
[1763374321643,0.0532391,142.32,142.3,0.04663096]
[1763374321839,2.0232391,142.32,142.3,3.28663096]
[1763374322842,0.0532391,142.32,142.3,3.28663096]
[1763374323242,1.2231556,142.37,142.31,8.28088884]
[1763374323442,1.95168884,142.4,142.34,3.24]
[1763374323637,3.19294068,142.41,142.34,3.24]
[1763374323945,3.19294068,142.41,142.36,3.24]
[1763374324141,1.95168884,142.42,142.36,3.24]
[1763374324340,1.95168884,142.42,142.35,1.95168884]
[1763374324341,0.03653047,142.4,142.39,3.24]
[1763374327040,2.00653047,142.4,142.38,0.04708946]
[1763374330741,2.00653047,142.4,142.38,3.28708946]
[1763374330952,0.03653047,142.4,142.38,3.28708946]